bitfinex/quotes_SOLUSD_20220210
["timestamp","ask_amount","ask_price","bid_price","bid_amount"]
[1644527819528,4.607,108.54,108.45,1.32989354]
[1644527819725,55.96150067,108.53,108.47,0.024]
[1644527819925,55.96150067,108.53,108.44,1.30589354]
[1644527820126,55.96150067,108.53,108.45,0.024]
[1644527820328,4.608,108.52,108.45,0.024]
[1644527820524,24.9505,108.52,108.43,15.13929354]
[1644527820727,24.9505,108.52,108.44,0.024]
[1644527820926,29.3638,108.51,108.44,0.024]
[1644527821125,28.06284771,108.51,108.43,59.78343606]
[1644527821524,28.06284771,108.51,108.44,1.30589354]
[1644527821724,28.06284771,108.51,108.45,13.8305]
[1644527821923,34.06284771,108.51,108.45,13.8305]
[1644527822326,28.06284771,108.51,108.44,7.32989354]
[1644527822729,34.06284771,108.51,108.44,7.32989354]
[1644527823429,28.06284771,108.51,108.44,7.32989354]
[1644527823628,47.89574771,108.51,108.44,7.32989354]
[1644527823827,52.50474771,108.51,108.44,7.32989354]
[1644527824627,52.50474771,108.51,108.44,6.024]
[1644527824826,52.50474771,108.51,108.44,0.024]
[1644527825029,52.50474771,108.51,108.44,6.024]
[1644527825230,52.50474771,108.51,108.44,0.024]
[1644527827031,52.50474771,108.51,108.42,0.024]
[1644527827230,52.50474771,108.51,108.41,6.32989354]
[1644527827434,52.50474771,108.51,108.41,6.0]
[1644527827742,52.50474771,108.51,108.41,13.8352]
[1644527827932,52.50474771,108.51,108.41,19.8352]
[1644527828333,52.50474771,108.51,108.41,54.82779322]
[1644527829034,52.50474771,108.51,108.41,68.06779322]
[1644527829835,52.50474771,108.51,108.41,27.0752]
[1644527830040,52.50474771,108.51,108.41,28.9281688]
[1644527830242,47.89574771,108.51,108.41,29.1781688]
[1644527830834,41.89574771,108.51,108.42,47.41102463]
[1644527831235,41.89574771,108.51,108.43,13.8328]
[1644527831836,41.89574771,108.51,108.44,43.5690104]
[1644527832236,41.89574771,108.51,108.44,57.4010104]
[1644527833037,38.5877,108.51,108.44,57.4010104]
[1644527833242,24.7548,108.51,108.44,57.4010104]
[1644527834040,24.7548,108.51,108.44,13.832]
[1644527834243,44.5874,108.51,108.42,13.8338]
[1644527834445,4.609,108.5,108.38,21.43823379]
[1644527834640,4.609,108.5,108.39,13.24]
[1644527834840,6.84022154,108.5,108.38,13.5375]
[1644527835040,2.68127712,108.49,108.39,43.64821849]
[1644527835239,4.61,108.48,108.39,43.64821849]
[1644527835442,31.55547126,108.47,108.39,43.64821849]
[1644527835642,45.39367126,108.47,108.39,57.48651849]
[1644527835840,45.39367126,108.47,108.39,13.8383]
[1644527836642,4.611,108.46,108.38,27.3773]
[1644527836841,2.68127712,108.45,108.38,27.3773]
[1644527837241,2.68127712,108.45,108.38,74.82994871]
[1644527837444,2.68127712,108.45,108.38,27.3773]
[1644527838048,2.68127712,108.45,108.38,13.8398]
[1644527838443,22.52167712,108.45,108.37,13.8431]
[1644527838742,8.69067126,108.43,108.35,13.96229701]
[1644527838943,27.9489,108.42,108.35,13.96229701]
[1644527839144,2.68127712,108.41,108.35,13.96229701]
[1644527839743,2.68127712,108.41,108.36,13.8443]
[1644527840944,16.52687712,108.41,108.35,13.8456]
[1644527842049,4.613,108.4,108.32,39.76955079]
[1644527842248,21.8379286,108.39,108.31,13.34]
[1644527842447,21.8379286,108.39,108.32,0.024]
[1644527842948,13.8484,108.39,108.32,0.024]
[1644527843156,24.4152,108.4,108.33,13.8481]
[1644527843351,23.3578,108.43,108.33,15.73596098]
[1644527843550,23.3578,108.43,108.34,15.12786098]
[1644527843749,23.3578,108.43,108.35,0.024]
[1644527843951,23.3578,108.43,108.35,39.98608866]
[1644527844150,23.3578,108.43,108.36,1.86386098]
[1644527844351,23.3578,108.43,108.37,35.46587984]
[1644527844551,23.3578,108.43,108.38,13.8409]
[1644527845160,4.614,108.45,108.38,24.85076098]
[1644527845356,28.725,108.47,108.39,13.24]
[1644527845554,28.725,108.47,108.4,44.12361464]
[1644527845758,24.114,108.47,108.4,44.14761464]
[1644527846557,4.611,108.49,108.41,13.8373]
[1644527846757,23.7597,108.5,108.41,13.8373]
[1644527846956,23.7597,108.5,108.42,1.88786098]
[1644527847358,23.7597,108.5,108.43,13.24]
[1644527847558,23.7597,108.5,108.44,35.52642919]
[1644527848857,23.7597,108.5,108.44,49.35842919]
[1644527849459,28.0649,108.53,108.44,73.92229017]
[1644527849657,28.0649,108.53,108.45,0.024]
[1644527849856,28.0649,108.53,108.46,13.24]
[1644527850060,28.0649,108.53,108.47,13.8289]
[1644527850263,23.4559,108.53,108.47,21.5739]
[1644527851063,27.7393,108.56,108.49,13.8268]
[1644527851261,23.1313,108.56,108.49,13.8268]
[1644527851460,4.607,108.57,108.49,13.8508]
[1644527851659,4.607,108.59,108.49,13.8508]
[1644527851861,4.607,108.59,108.5,0.024]
[1644527852064,13.3459294,108.59,108.5,0.024]
[1644527852262,33.1697294,108.59,108.5,13.849]
[1644527852462,33.1697294,108.59,108.51,0.024]
[1644527853265,24.4308,108.59,108.51,0.024]
[1644527853464,24.4308,108.59,108.51,13.8488]
[1644527853665,10.607,108.59,108.51,13.8488]
[1644527854081,4.607,108.59,108.51,13.8488]
[1644527854281,4.607,108.59,108.52,38.902641]
[1644527854684,4.607,108.59,108.54,35.38646087]
[1644527855182,4.607,108.59,108.54,46.46646087]
[1644527855782,4.607,108.59,108.54,60.28716087]
[1644527855984,71.5504,108.6,108.54,60.28716087]
[1644527856184,4.605,108.59,108.54,60.28716087]
[1644527857384,76.1554,108.6,108.54,60.28716087]
[1644527857784,49.0074,108.6,108.54,60.28716087]
[1644527857984,10.04002636,108.64,108.54,60.28716087]
[1644527858384,16.04002636,108.64,108.54,60.28716087]
[1644527858586,16.04002636,108.64,108.54,73.52716087]
[1644527859284,6.0,108.64,108.55,1.86386098]
[1644527859484,6.0,108.64,108.57,13.8143]
[1644527859684,4.603,108.67,108.57,27.0543]
[1644527860292,15.37487044,108.67,108.58,36.05100717]
[1644527860493,15.37487044,108.67,108.58,49.86490717]
[1644527860888,4.603,108.67,108.58,49.86490717]
[1644527861090,4.603,108.67,108.58,56.95790717]
[1644527861692,60.7616,108.68,108.58,56.95790717]
[1644527861893,11.07848288,108.67,108.58,56.95790717]
[1644527862092,11.07848288,108.67,108.58,49.86490717]
[1644527862290,13.8142,108.68,108.58,49.86490717]
[1644527862491,4.602,108.67,108.59,1.86386098]
[1644527862693,4.602,108.73,108.61,13.8069]
[1644527862892,4.602,108.73,108.62,13.24]
[1644527863093,4.602,108.73,108.62,21.89]
[1644527863292,8.65835872,108.72,108.63,44.29377206]
[1644527863595,2.71358966,108.7,108.63,44.29377206]
[1644527863790,2.71358966,108.7,108.62,13.24]
[1644527864193,4.601,108.69,108.59,13.24]
[1644527864394,4.601,108.69,108.54,38.5191]
[1644527864594,49.2524,108.68,108.55,13.24]
[1644527864796,8.07975456,108.66,108.56,46.51341538]
[1644527864995,4.603,108.65,108.56,59.75341538]
[1644527865199,53.8554,108.68,108.57,13.8143]
[1644527865496,49.2524,108.68,108.58,13.24]
[1644527865795,4.602,108.67,108.58,13.24]
[1644527866098,58.76319793,108.68,108.59,41.91264256]
[1644527866295,58.76319793,108.68,108.59,55.72394256]
[1644527867195,49.2524,108.68,108.59,55.72394256]
[1644527867398,49.2524,108.68,108.59,55.97394256]
[1644527867600,18.4132,108.71,108.59,69.21394256]
[1644527867799,59.0313,108.71,108.59,77.07780354]
[1644527867998,59.0313,108.71,108.59,71.07780354]
[1644527868208,59.0313,108.71,108.59,77.07780354]
[1644527868801,8.59947228,108.7,108.59,77.07780354]
[1644527869004,8.59947228,108.7,108.59,76.82780354]
[1644527869200,8.59947228,108.7,108.59,69.21394256]
[1644527869802,22.8427,108.69,108.59,69.21394256]
[1644527870101,27.4447,108.69,108.59,69.21394256]
[1644527870502,22.8427,108.69,108.59,71.07780354]
[1644527870702,22.8427,108.69,108.59,77.07780354]
[1644527870904,28.9747,108.71,108.59,77.07780354]
[1644527871103,51.7964,108.71,108.59,86.74880354]
[1644527871504,2.64624035,108.7,108.59,86.74880354]
[1644527871703,4.602,108.69,108.59,86.74880354]
[1644527871902,4.602,108.69,108.59,80.74880354]
[1644527872106,4.602,108.69,108.59,71.07780354]
[1644527872304,8.72570803,108.68,108.59,70.82780354]
[1644527872503,8.72570803,108.68,108.59,68.96394256]
[1644527873105,32.49510803,108.68,108.59,68.96394256]
[1644527873807,32.49510803,108.68,108.59,55.72394256]
[1644527874006,4.602,108.67,108.57,26.9124]
[1644527874206,28.6828,108.67,108.57,40.7271]
[1644527874408,38.4298,108.67,108.57,40.7271]
[1644527874808,23.3767,108.66,108.54,27.3755]
[1644527875112,7.25024035,108.65,108.54,69.82758895]
[1644527875312,8.72570803,108.63,108.54,71.94144993]
[1644527875510,13.32970803,108.63,108.54,77.94144993]
[1644527876112,36.02790803,108.63,108.54,71.94144993]
[1644527876720,36.02790803,108.63,108.55,13.8174]
[1644527877117,36.02790803,108.63,108.56,41.70681048]
[1644527877719,42.02790803,108.63,108.56,41.70681048]
[1644527878322,37.42390803,108.63,108.56,41.70681048]
[1644527878523,28.6982,108.63,108.56,55.52371048]
[1644527878725,28.6982,108.63,108.56,70.87757154]
[1644527879122,22.6982,108.63,108.56,70.62757154]
[1644527879327,23.3767,108.64,108.56,76.87757154]
[1644527879526,23.3767,108.64,108.56,70.87757154]
[1644527879725,23.3767,108.64,108.56,76.87757154]
[1644527879928,11.03181367,108.66,108.56,70.87757154]
[1644527880126,17.03181367,108.66,108.56,70.87757154]
[1644527880738,23.6454,108.66,108.56,70.87757154]
[1644527880937,4.604,108.67,108.56,101.38101532]
[1644527881137,24.417,108.68,108.56,101.38101532]
[1644527881440,24.417,108.68,108.56,114.72195445]
[1644527882042,29.02,108.68,108.56,114.72195445]
[1644527882438,24.417,108.68,108.56,114.72195445]
[1644527883340,33.57858587,108.68,108.56,114.72195445]
[1644527884140,39.57858587,108.68,108.56,114.47195445]
[1644527884339,4.603,108.67,108.56,114.47195445]
[1644527885640,24.417,108.68,108.56,114.72195445]
[1644527886041,33.40227183,108.68,108.56,114.72195445]
[1644527886643,24.417,108.68,108.56,114.72195445]
[1644527886843,24.417,108.68,108.56,101.38101532]
[1644527887240,24.417,108.68,108.56,109.80433007]
[1644527887642,4.603,108.7,108.56,201.50433007]
[1644527887842,4.602,108.71,108.61,13.807]
[1644527888044,1.96198784,108.7,108.62,37.37546596]
[1644527888343,1.96198784,108.7,108.62,43.62546596]
[1644527888543,1.96198784,108.7,108.62,43.37546596]
[1644527888945,10.602,108.71,108.62,43.37546596]
[1644527889149,10.602,108.71,108.63,13.808]
[1644527889344,4.602,108.71,108.63,20.058]
[1644527889944,4.602,108.71,108.64,48.27110712]
[1644527890147,51.6244,108.72,108.65,13.8058]
[1644527890349,57.6244,108.72,108.66,48.76974723]
[1644527890646,53.0244,108.72,108.66,48.76974723]
[1644527890945,47.0244,108.72,108.66,48.76974723]
[1644527891145,47.0244,108.72,108.66,59.17974723]
[1644527891345,4.6,108.74,108.66,73.23494723]
[1644527891550,78.6195,108.75,108.66,73.23494723]
[1644527892045,84.6195,108.75,108.66,73.23494723]
[1644527892247,54.50270446,108.76,108.66,75.09880829]
[1644527892453,47.3094,108.76,108.66,75.09880829]
[1644527892649,57.9084,108.76,108.67,13.24]
[1644527892850,57.9084,108.76,108.69,13.7998]
[1644527893049,51.9084,108.76,108.69,13.7998]
[1644527893250,51.9084,108.76,108.7,40.63364032]
[1644527893456,47.3094,108.76,108.7,40.63364032]
[1644527894052,47.3094,108.76,108.71,13.799]
[1644527894652,53.3094,108.76,108.72,44.99377168]
[1644527894851,47.3094,108.76,108.72,44.99377168]
[1644527895451,47.3094,108.76,108.72,58.79177168]
[1644527896853,47.3094,108.76,108.72,70.19477168]
[1644527899357,47.3094,108.76,108.72,25.201]
[1644527899562,47.3094,108.76,108.71,13.7994]
[1644527901259,53.3094,108.76,108.69,13.8009]
[1644527901462,4.598,108.75,108.69,13.8009]
[1644527901662,57.9074,108.76,108.69,13.8009]
[1644527901858,53.3094,108.76,108.69,13.8009]
[1644527902262,75.68008102,108.76,108.68,56.15844238]
[1644527902460,4.598,108.75,108.68,56.15844238]
[1644527902861,4.598,108.75,108.68,56.40844238]
[1644527903061,47.3094,108.76,108.68,56.40844238]
[1644527903261,47.3094,108.76,108.68,69.64844238]
[1644527903463,47.3094,108.76,108.68,75.14844238]
[1644527903870,47.3094,108.76,108.68,86.04344238]
[1644527904069,47.3094,108.76,108.68,80.04344238]
[1644527904273,47.3094,108.76,108.68,86.04344238]
[1644527904478,47.3094,108.76,108.69,1.86386106]
[1644527904666,47.3094,108.76,108.71,13.7972]
[1644527904867,47.3094,108.76,108.72,42.75437731]
[1644527905066,27.779,108.8,108.72,42.75437731]
[1644527905276,57.3347,108.8,108.72,43.00437731]
[1644527905769,57.3347,108.8,108.73,13.7957]
[1644527905967,57.3347,108.8,108.74,36.35033555]
[1644527906567,34.1537,108.8,108.74,36.35033555]
[1644527906770,29.5557,108.8,108.74,36.35033555]
[1644527907368,29.5557,108.8,108.74,50.14603555]
[1644527907566,23.5557,108.8,108.74,50.14603555]
[1644527907772,23.5557,108.8,108.74,50.39603555]
[1644527908369,23.5557,108.8,108.74,50.14603555]
[1644527910570,4.596,108.79,108.74,50.14603555]
[1644527910771,23.5557,108.8,108.74,50.14603555]
[1644527910972,29.5557,108.8,108.74,50.14603555]
[1644527911173,23.5557,108.8,108.74,50.14603555]
[1644527911771,4.597,108.81,108.74,50.14603555]
[1644527911971,10.597,108.81,108.74,50.39603555]
[1644527912173,0.0393085,108.82,108.74,50.14603555]
[1644527912372,57.0142085,108.83,108.74,50.14603555]
[1644527913271,59.24543004,108.83,108.74,50.14603555]
[1644527913471,13.7939,108.82,108.74,50.14603555]
[1644527913672,4.596,108.81,108.74,50.14603555]
[1644527915197,46.4182085,108.83,108.74,50.39603555]
[1644527915397,46.4182085,108.83,108.74,60.24703555]
[1644527915697,46.4182085,108.83,108.74,79.48703555]
[1644527915898,52.4182085,108.83,108.74,50.14603555]
[1644527916097,31.73970999,108.82,108.73,13.7973]
[1644527916299,13.7988,108.8,108.67,36.9943]
[1644527916499,4.598,108.79,108.67,36.9943]
[1644527916800,46.56,108.78,108.67,42.9943]
[1644527917302,46.56,108.78,108.68,35.38013055]
[1644527917699,60.3591,108.78,108.7,13.7991]
[1644527917905,4.598,108.77,108.71,44.38643319]
[1644527919201,46.56,108.78,108.71,44.38643319]
[1644527919401,46.56,108.78,108.71,58.18573319]
[1644527920803,60.3583,108.78,108.71,58.18573319]
[1644527921806,66.3583,108.78,108.71,58.18573319]
[1644527922205,46.56,108.78,108.71,58.18573319]
[1644527922606,46.56,108.78,108.71,58.43573319]
[1644527923712,0.0393085,108.8,108.71,58.43573319]
[1644527923713,0.0393085,108.8,108.71,64.43573319]
[1644527923913,0.0393085,108.8,108.71,86.25373319]
[1644527924111,0.0393085,108.8,108.71,88.114544]
[1644527925112,0.0393085,108.81,108.71,88.114544]
[1644527925311,0.0393085,108.8,108.71,88.114544]
[1644527926312,0.0393085,108.8,108.71,86.25373319]
[1644527927613,0.0393085,108.8,108.71,77.67573319]
[1644527927814,0.0393085,108.8,108.71,71.67573319]
[1644527928013,0.0393085,108.8,108.71,58.43573319]
[1644527928221,24.4919085,108.8,108.71,58.43573319]
[1644527928414,24.4919085,108.8,108.71,58.18573319]
[1644527928814,4.597,108.79,108.71,58.18573319]
[1644527929021,53.6552085,108.8,108.71,58.18573319]
[1644527929215,59.6552085,108.8,108.71,58.18573319]
[1644527929719,59.6552085,108.8,108.71,58.43573319]
[1644527930823,13.7972,108.79,108.71,58.43573319]
[1644527932122,49.0582085,108.8,108.71,58.43573319]
[1644527932842,49.0582085,108.8,108.71,64.43573319]
[1644527933044,55.0582085,108.8,108.71,64.43573319]
[1644527933242,49.0582085,108.8,108.71,64.43573319]
[1644527933442,49.0582085,108.8,108.71,58.43573319]
[1644527933643,49.0582085,108.8,108.71,64.43573319]
[1644527934844,0.0393085,108.8,108.72,15.10081081]
[1644527935048,0.0393085,108.81,108.74,13.7899]
[1644527935250,0.0393085,108.8,108.75,34.19980761]
[1644527935447,0.0393085,108.82,108.75,34.19980761]
[1644527935649,137.62111296,108.83,108.75,34.44980761]
[1644527936044,135.0268085,108.83,108.75,34.44980761]
[1644527936945,135.0268085,108.83,108.77,47.95860833]
[1644527937147,134.9875,108.83,108.77,47.95860833]
[1644527938348,134.9875,108.83,108.78,13.7894]
[1644527938547,2.23122154,108.82,108.72,15.10081081]
[1644527938749,6.82722154,108.82,108.71,13.24]
[1644527938947,0.0393085,108.81,108.69,27.1399]
[1644527939347,16.06503004,108.81,108.72,13.7972]
[1644527939549,29.0177,108.8,108.72,13.7972]
[1644527939747,29.0570085,108.8,108.73,42.26274846]
[1644527939948,29.0177,108.8,108.73,42.26274846]
[1644527940353,2.918746,108.79,108.72,13.7972]
[1644527940550,4.597,108.78,108.72,13.7972]
[1644527940757,4.597,108.79,108.72,13.7972]
[1644527941152,13.7985,108.78,108.72,13.7972]
[1644527941352,4.597,108.77,108.72,13.7972]
[1644527941556,4.597,108.78,108.72,55.5989335]
[1644527942158,10.597,108.78,108.72,55.5989335]
[1644527942754,13.7999,108.77,108.72,55.5989335]
[1644527944555,6.0,108.78,108.72,55.5989335]
[1644527944556,19.798,108.78,108.72,55.5989335]
[1644527944856,6.0,108.78,108.72,55.5989335]
[1644527945056,47.8554085,108.8,108.72,55.5989335]
[1644527945256,4.597,108.79,108.72,55.5989335]
[1644527945857,18.3933,108.79,108.72,55.5989335]
[1644527947557,1.29855629,108.78,108.72,55.5989335]
[1644527949360,1.29855629,108.78,108.72,55.8489335]
[1644527949561,1.29855629,108.78,108.72,55.5989335]
[1644527950770,1.29855629,108.77,108.72,55.5989335]
[1644527951765,1.29855629,108.77,108.72,13.7972]
[1644527951966,1.29855629,108.77,108.69,13.24]
[1644527951967,13.15755629,108.77,108.69,45.9966]
[1644527952164,1.29855629,108.76,108.71,13.8005]
[1644527952965,7.29855629,108.76,108.71,13.8005]
[1644527953165,1.29855629,108.76,108.71,13.8005]
[1644527953567,7.29855629,108.76,108.71,13.8005]
[1644527953767,21.09875629,108.76,108.71,13.8005]
[1644527955169,21.09875629,108.76,108.64,13.24]
[1644527955368,21.09875629,108.76,108.64,6.0]
[1644527955369,1.29855629,108.74,108.64,6.0]
[1644527955569,13.8057,108.72,108.62,24.1184]
[1644527955770,23.4632,108.71,108.62,13.7309]
[1644527955969,23.4632,108.71,108.63,41.84806232]
[1644527956571,29.4632,108.71,108.63,42.09806232]
[1644527956773,29.4632,108.71,108.65,13.8061]
[1644527957575,29.4632,108.71,108.66,37.59408486]
[1644527957772,29.4632,108.71,108.66,51.40028486]
[1644527958476,29.4632,108.71,108.66,13.8062]
[1644527958677,43.2705,108.71,108.63,46.0203]
[1644527958878,4.601,108.7,108.64,13.8086]
[1644527959079,36.9562,108.71,108.64,13.8086]
[1644527959576,36.9562,108.71,108.64,54.35601255]
[1644527959782,18.4086,108.7,108.64,54.35601255]
[1644527961082,13.8086,108.7,108.64,54.35601255]
[1644527963697,19.8086,108.7,108.64,54.35601255]
[1644527966613,24.4096,108.7,108.64,54.35601255]
[1644527969917,19.8086,108.7,108.64,54.35601255]
[1644527972721,6.0,108.7,108.64,54.35601255]
[1644527973122,23.4632,108.71,108.64,54.35601255]
[1644527973322,5.89855629,108.74,108.64,54.60601255]
[1644527973522,1.29855629,108.74,108.64,56.46682336]
[1644527973724,49.1431,108.75,108.64,56.46682336]
[1644527973923,49.1431,108.75,108.65,13.24]
[1644527974127,49.1431,108.75,108.68,13.8008]
[1644527974329,49.1431,108.75,108.68,22.3698]
[1644527974523,49.1431,108.75,108.69,47.01536986]
[1644527974725,5.93686479,108.77,108.69,47.26536986]
[1644527975124,4.6383085,108.77,108.69,62.36618067]
[1644527976025,0.0393085,108.77,108.69,62.36618067]
[1644527976734,23.0370085,108.78,108.7,13.7982]
[1644527976927,0.0393085,108.77,108.71,46.45479066]
[1644527977130,23.0370085,108.78,108.71,46.45479066]
[1644527977329,22.9977,108.78,108.71,57.16579066]
[1644527978835,22.9977,108.78,108.72,13.7966]
[1644527979240,4.6363085,108.79,108.72,13.7966]
[1644527979434,4.6363085,108.79,108.72,14.0466]
[1644527979833,4.6363085,108.79,108.74,13.7926]
[1644527980136,99.84770446,108.85,108.75,48.3841928]
[1644527980338,155.5492,108.85,108.75,54.6341928]
[1644527980535,155.5492,108.85,108.75,50.49500361]
[1644527980753,81.7195,108.85,108.75,56.49500361]
[1644527981133,58.2958,108.85,108.75,148.51500361]
[1644527981738,53.7008,108.85,108.76,13.7905]
[1644527981936,53.7008,108.85,108.77,38.45859612]
[1644527983538,4.595,108.86,108.79,13.7873]
[1644527983738,4.594,108.88,108.79,13.7873]
[1644527983940,51.4233,108.89,108.79,13.7873]
[1644527984139,6.0,108.88,108.79,13.7873]
[1644527984339,4.594,108.87,108.8,35.14215831]
[1644527984738,4.594,108.88,108.82,36.14886441]
[1644527984939,6.0,108.87,108.82,36.14886441]
[1644527985139,4.593,108.86,108.82,36.14886441]
[1644527985338,10.593,108.88,108.82,36.14886441]
[1644527985539,4.593,108.88,108.82,36.14886441]
[1644527985940,10.593,108.88,108.82,36.14886441]
[1644527990145,10.593,108.88,108.82,49.93416441]
[1644527990345,6.0,108.88,108.82,49.93416441]
[1644527990746,60.6147,108.89,108.82,49.93416441]
[1644527991346,62.69999336,108.89,108.77,61.05981081]
[1644527991547,131.96522154,108.88,108.77,45.959]
[1644527991749,13.7899,108.86,108.75,13.9283]
[1644527991950,29.2134,108.85,108.75,13.9283]
[1644527992146,24.6184,108.85,108.75,13.9283]
[1644527992349,24.6184,108.85,108.76,38.76808533]
[1644527992549,48.4058,108.85,108.76,38.76808533]
[1644527992764,48.4058,108.85,108.77,13.7907]
[1644527992964,48.4058,108.85,108.78,43.59572175]
[1644527993765,4.594,108.84,108.78,43.59572175]
[1644527993965,48.4058,108.85,108.78,43.59572175]
[1644527994368,54.4058,108.85,108.78,43.59572175]
[1644527994867,13.24,108.88,108.78,59.24653256]
[1644527995067,48.83950446,108.91,108.78,65.24653256]
[1644527995268,46.2452,108.91,108.79,13.24]
[1644527995469,46.2452,108.91,108.8,36.3853977]
[1644527995470,0.03918872,108.9,108.8,36.3853977]
[1644527995669,0.03918872,108.9,108.81,13.24]
[1644527995869,0.03918872,108.9,108.82,48.0992535]
[1644527996067,0.03918872,108.9,108.82,61.3392535]
[1644527996269,0.03918872,108.9,108.82,63.20006431]
[1644527996469,0.03918872,108.9,108.82,76.97996431]
[1644527996770,0.03918872,108.9,108.82,75.1191535]
[1644527997171,4.63218872,108.9,108.82,75.1191535]
[1644527997375,4.63218872,108.9,108.82,61.8791535]
[1644527997569,0.03918872,108.9,108.82,61.8791535]
[1644527998769,13.82338872,108.9,108.82,61.8791535]
[1644527999372,4.4234971,108.89,108.82,48.0992535]
[1644527999573,4.63218872,108.89,108.82,48.0992535]
[1644527999774,0.03918872,108.89,108.82,48.0992535]
[1644527999974,4.593,108.88,108.82,48.0992535]
[1644528000174,0.03918872,108.89,108.82,48.0992535]
[1644528000378,4.593,108.9,108.82,48.0992535]
[1644528000574,66.79545481,108.91,108.82,48.0992535]
[1644528000773,13.7864,108.89,108.82,48.0992535]
[1644528000972,13.82558872,108.89,108.82,48.0992535]
[1644528002174,4.593,108.88,108.82,48.0992535]
[1644528002378,13.7867,108.88,108.82,48.0992535]
[1644528002776,19.7867,108.88,108.82,48.0992535]
[1644528003074,19.7867,108.88,108.81,13.7867]
[1644528003275,4.593,108.87,108.8,13.7883]
[1644528003477,43.1206,108.87,108.8,13.7883]
[1644528003979,58.27201719,108.87,108.8,59.47406364]
[1644528004176,58.27201719,108.87,108.8,45.68576364]
[1644528004577,58.27201719,108.87,108.77,59.2]
[1644528004776,13.7907,108.85,108.76,36.8891]
[1644528004979,13.7907,108.85,108.73,24.5696]
[1644528004980,27.6146,108.84,108.73,23.1144]
[1644528005177,35.71292722,108.84,108.73,13.24]
[1644528005376,0.03932722,108.83,108.73,13.24]
[1644528005580,4.596,108.82,108.74,47.79190039]
[1644528005777,27.6156,108.82,108.74,61.58700039]
[1644528005976,23.0196,108.82,108.74,61.58700039]
[1644528006375,29.0196,108.82,108.74,61.58700039]
[1644528006777,42.8146,108.82,108.74,61.58700039]
[1644528010093,33.6156,108.82,108.74,61.58700039]
[1644528010294,33.6156,108.82,108.74,61.83700039]
[1644528010690,33.6156,108.82,108.74,61.58700039]
[1644528012891,4.596,108.82,108.74,76.93777268]
[1644528013089,0.03932722,108.84,108.74,76.93777268]
[1644528013289,0.03932722,108.84,108.74,87.91709034]
[1644528015389,0.03932722,108.84,108.74,179.93709034]
[1644528016492,0.03932722,108.84,108.74,193.85879034]
[1644528017492,0.03932722,108.84,108.74,193.60879034]
[1644528018197,0.03932722,108.84,108.75,165.53]
[1644528018395,0.03932722,108.86,108.77,13.782]
[1644528018595,0.03932722,108.84,108.78,13.24]
[1644528018795,0.03932722,108.86,108.78,21.35077229]
[1644528019020,0.03932722,108.87,108.79,37.16787008]
[1644528019218,0.03932722,108.86,108.8,13.24]
[1644528019414,0.03932722,108.87,108.81,54.65256997]
[1644528019616,0.03932722,108.9,108.82,13.24]
[1644528020416,0.03932722,108.9,108.84,13.7816]
[1644528020620,73.5043,108.91,108.85,37.93444511]
[1644528020818,73.54362722,108.91,108.85,37.93444511]
[1644528021020,73.5043,108.91,108.85,37.93444511]
[1644528021817,73.5043,108.91,108.85,51.71654511]
[1644528026724,73.5043,108.91,108.84,13.7836]
[1644528026924,75.77484876,108.91,108.81,13.24]
[1644528027123,83.98384876,108.91,108.8,45.9509]
[1644528027325,97.22384876,108.91,108.8,51.9509]
[1644528027526,97.22384876,108.91,108.8,45.9509]
[1644528027728,13.77643538,108.9,108.81,41.82791311]
[1644528028028,18.3784,108.89,108.83,40.52514028]
[1644528028227,18.41772722,108.89,108.83,40.52514028]
[1644528028427,18.3784,108.89,108.83,40.52514028]
[1644528029327,13.7854,108.89,108.83,40.52514028]
[1644528030532,4.593,108.88,108.83,40.52514028]
[1644528031733,10.593,108.88,108.83,40.52514028]
[1644528031933,4.593,108.88,108.83,40.52514028]
[1644528032134,10.593,108.88,108.83,40.52514028]
[1644528032332,10.593,108.88,108.83,54.31034028]
[1644528032532,6.0,108.88,108.83,54.31034028]
[1644528032732,23.88872722,108.89,108.83,54.31034028]
[1644528032934,6.0,108.88,108.83,54.31034028]
[1644528033135,0.03932722,108.89,108.83,54.31034028]